fUSD/lending_fUSD_20250617
["ID","MTS","AMOUNT","RATE_DAILY","PERIOD"]
[366338906,1750197043171,-490.0,0.00016438,2]
[366338908,1750197043180,-773.05,0.00016438,2]
[366338910,1750197043190,-690.31,0.00016438,2]
[366338912,1750197043199,-809.44,0.00016438,2]
[366338913,1750197043208,-490.0,0.00016438,2]
[366338915,1750197043218,-186.42249772,0.00016438,2]
[366338918,1750197043227,-490.0,0.00016438,2]
[366338919,1750197043236,-828.29,0.00016438,2]
[366338921,1750197043245,-490.0,0.00016438,2]
[366338924,1750197043255,-490.0,0.00016438,2]
[366338925,1750197043264,-490.0,0.00016438,2]
[366338928,1750197043274,-659.53,0.00016438,2]
[366338929,1750197043283,-490.0,0.00016438,2]
[366338931,1750197043293,-490.0,0.00016438,2]
[366338933,1750197043302,-490.0,0.00016438,2]
[366338935,1750197043312,-151.20196307,0.00016438,2]
[366338937,1750197043322,-490.0,0.00016438,2]
[366338939,1750197043335,-490.0,0.00016438,2]
[366338941,1750197043345,-490.0,0.00016438,2]
[366338944,1750197043354,-490.0,0.00016438,2]
[366338945,1750197043363,-1534.94,0.00016438,2]
[366338947,1750197043373,-613.37,0.00016438,2]
[366338949,1750197043382,-621.51,0.00016438,2]
[366338951,1750197043391,-490.0,0.00016438,2]
[366338953,1750197043402,-592.4,0.00016438,2]
[366338955,1750197043412,-1019.1,0.00016438,2]
[366338957,1750197043421,-490.0,0.00016438,2]
[366338959,1750197043430,-1349.85,0.00016438,2]
[366338961,1750197043439,-490.0,0.00016438,2]
[366338963,1750197043449,-490.0,0.00016438,2]
[366338965,1750197043458,-490.0,0.00016438,2]
[366338967,1750197043467,-490.0,0.00016438,2]
[366338969,1750197043477,-2185.07,0.00016438,2]
[366338971,1750197043486,-490.0,0.00016438,2]
[366338973,1750197043496,-1812.48,0.00016438,2]
[366338975,1750197043505,-490.0,0.00016438,2]
[366338977,1750197043515,-460.0,0.00016438,2]
[366338979,1750197043524,-490.0,0.00016438,2]
[366338981,1750197043533,-490.0,0.00016438,2]
[366338983,1750197043543,-490.0,0.00016438,2]
[366338985,1750197043552,-490.0,0.00016438,2]
[366338987,1750197043562,-490.0,0.00016438,2]
[366338990,1750197043574,-490.0,0.00016438,2]
[366338992,1750197043583,-206.20061657,0.00016438,2]
[366338994,1750197043593,-881.55,0.00016438,2]
[366338996,1750197043603,-490.0,0.00016438,2]
[366338998,1750197043613,-883.42,0.00016438,2]
[366339000,1750197043622,-890.55,0.00016438,2]
[366339002,1750197043632,-500.74,0.00016438,2]
[366339004,1750197043641,-460.0,0.00016438,2]
[366339006,1750197043651,-524.01,0.00016438,2]
[366339008,1750197043660,-390.0,0.00016438,2]
[366339010,1750197043669,-490.0,0.00016438,2]
[366339012,1750197043679,-490.0,0.00016438,2]
[366339013,1750197043688,-490.0,0.00016438,2]
[366339016,1750197043698,-490.0,0.00016438,2]
[366339018,1750197043707,-490.0,0.00016438,2]
[366339019,1750197043719,-490.0,0.00016438,2]
[366339022,1750197043728,-490.0,0.00016438,2]
[366339023,1750197043738,-871.35,0.00016438,2]
[366339025,1750197043747,-820.47,0.00016438,2]
[366339027,1750197043756,-490.0,0.00016438,2]
[366339029,1750197043766,-1763.38,0.00016438,2]
[366339031,1750197043775,-490.0,0.00016438,2]
[366339033,1750197043785,-490.0,0.00016438,2]
[366339035,1750197043794,-490.0,0.00016438,2]
[366339037,1750197043803,-540.0,0.00016438,2]
[366339039,1750197043813,-490.0,0.00016438,2]
[366339041,1750197043822,-1315.55,0.00016438,2]
[366339043,1750197043831,-490.0,0.00016438,2]
[366339045,1750197043841,-1023.16,0.00016438,2]
[366339047,1750197043851,-1177.03,0.00016438,2]
[366339049,1750197043860,-490.0,0.00016438,2]
[366339051,1750197043870,-1532.41,0.00016438,2]
[366339053,1750197043880,-151.0,0.00016438,2]
[366339055,1750197043890,-658.12,0.00016438,2]
[366339057,1750197043900,-151.0,0.00016438,2]
[366339059,1750197043910,-151.0,0.00016438,2]
[366339061,1750197043920,-460.0,0.00016438,2]
[366339063,1750197043929,-151.0,0.00016438,2]
[366339065,1750197043939,-151.0,0.00016438,2]
[366339067,1750197043949,-151.0,0.00016438,2]
[366339069,1750197043959,-490.0,0.00016438,2]
[366339071,1750197043969,-490.0,0.00016438,2]
[366339074,1750197043980,-615.1,0.00016438,2]
[366339076,1750197043990,-490.0,0.00016438,2]
[366339078,1750197044000,-648.8,0.00016438,2]
[366339080,1750197044010,-490.0,0.00016438,2]
[366339082,1750197044026,-2046.95,0.00016438,2]
[366339084,1750197044046,-460.0,0.00016438,2]
[366339086,1750197044056,-1850.28,0.00016438,2]
[366339088,1750197044066,-263.11110677,0.00016438,2]
[366339090,1750197044076,-490.0,0.00016438,2]
[366339092,1750197044085,-490.0,0.00016438,2]
[366339094,1750197044096,-490.0,0.00016438,2]
[366339096,1750197044106,-490.0,0.00016438,2]
[366339098,1750197044115,-151.0,0.00016438,2]
[366339100,1750197044125,-490.0,0.00016438,2]
[366339102,1750197044135,-490.0,0.00016438,2]
[366339104,1750197044145,-490.0,0.00016438,2]
[366339106,1750197044155,-1494.29,0.00016438,2]
[366339108,1750197044164,-490.0,0.00016438,2]
[366339110,1750197044174,-2452.0,0.00016438,2]
[366339112,1750197044183,-490.0,0.00016438,2]
[366339114,1750197044193,-760.04,0.00016438,2]
[366339116,1750197044203,-410.44388661,0.00016438,2]
[366339118,1750197044213,-490.0,0.00016438,2]
[366339120,1750197044223,-1295.16,0.00016438,2]
[366339122,1750197044232,-867.9,0.00016438,2]
[366339124,1750197044242,-490.0,0.00016438,2]
[366339126,1750197044252,-490.0,0.00016438,2]
[366339128,1750197044262,-997.1,0.00016438,2]
[366339130,1750197044271,-924.53,0.00016438,2]
[366339132,1750197044281,-687.96,0.00016438,2]
[366339134,1750197044291,-490.0,0.00016438,2]
[366339135,1750197044300,-490.0,0.00016438,2]
[366339137,1750197044309,-1677.86,0.00016438,2]
[366339139,1750197044318,-490.0,0.00016438,2]
[366339141,1750197044332,-1606.24,0.00016438,2]
[366339143,1750197044341,-490.0,0.00016438,2]
[366339145,1750197044351,-151.0,0.00016438,2]
[366339147,1750197044360,-151.0,0.00016438,2]
[366339149,1750197044371,-151.0,0.00016438,2]
[366339151,1750197044380,-591.85,0.00016438,2]
[366339153,1750197044389,-490.0,0.00016438,2]
[366339155,1750197044399,-490.0,0.00016438,2]
[366339157,1750197044410,-1624.08,0.00016438,2]
[366339159,1750197044421,-490.0,0.00016438,2]
[366339161,1750197044430,-542.34654766,0.00016438,2]
[366339163,1750197044440,-490.0,0.00016438,2]
[366339165,1750197044449,-490.0,0.00016438,2]
[366339167,1750197044458,-490.0,0.00016438,2]
[366339169,1750197044468,-460.0,0.00016438,2]
[366339171,1750197044478,-1016.81,0.00016438,2]
[366339173,1750197044488,-490.0,0.00016438,2]
[366339174,1750197044497,-151.0,0.00016438,2]
[366339176,1750197044506,-2346.25,0.00016438,2]
[366339178,1750197044516,-892.43,0.00016438,2]
[366339180,1750197044525,-460.0,0.00016438,2]
[366339182,1750197044534,-430.0,0.00016438,2]
[366339184,1750197044543,-490.0,0.00016438,2]
[366339185,1750197044552,-283.38702372,0.00016438,2]
[366339198,1750197044665,-420.0,0.00016438,2]
[366339200,1750197044677,-873.71297628,0.00016438,2]
[366339202,1750197044686,-26.27702372,0.00016438,2]
[366339204,1750197044699,-463.72297628,0.00016438,2]
[366339206,1750197044708,-490.0,0.00016438,2]
[366339208,1750197044718,-508.72,0.00016438,2]
[366339210,1750197044728,-151.0,0.00016438,2]
[366339212,1750197044737,-151.0,0.00016438,2]
[366339214,1750197044747,-2047.56,0.00016438,2]
[366339216,1750197044756,-490.0,0.00016438,2]
[366339218,1750197044765,-1033.27,0.00016438,2]
[366339220,1750197044775,-151.0,0.00016438,2]
[366339223,1750197044794,-151.0,0.00016438,2]
[366339225,1750197044805,-151.0,0.00016438,2]
[366339227,1750197044816,-450.0,0.00016438,2]
[366339229,1750197044825,-868.55,0.00016438,2]
[366339231,1750197044835,-490.0,0.00016438,2]
[366339233,1750197044845,-1430.0,0.00016438,2]
[366339236,1750197044855,-433.6845355,0.00016438,2]
[366339237,1750197044865,-652.96,0.00016438,2]
[366339240,1750197044875,-1528.55,0.00016438,2]
[366339241,1750197044885,-490.0,0.00016438,2]
[366339243,1750197044895,-490.0,0.00016438,2]
[366339245,1750197044905,-1007.66,0.00016438,2]
[366339248,1750197044916,-987.83,0.00016438,2]
[366339250,1750197044926,-490.0,0.00016438,2]
[366339252,1750197044936,-562.95,0.00016438,2]
[366339254,1750197044946,-490.0,0.00016438,2]
[366339256,1750197044956,-490.0,0.00016438,2]
[366339258,1750197044964,-490.0,0.00016438,2]
[366339259,1750197044974,-1192.6,0.00016438,2]
[366339261,1750197044983,-490.0,0.00016438,2]
[366339263,1750197044993,-697.18,0.00016438,2]
[366339265,1750197045003,-460.0,0.00016438,2]
[366339267,1750197045013,-1187.39,0.00016438,2]
[366339270,1750197045024,-843.69,0.00016438,2]
[366339272,1750197045033,-490.0,0.00016438,2]
[366339274,1750197045043,-814.41,0.00016438,2]
[366339276,1750197045054,-490.0,0.00016438,2]
[366339277,1750197045064,-490.0,0.00016438,2]
[366339279,1750197045074,-1659.9155432,0.00016438,2]
[366339282,1750197045090,-524.25,0.00016438,2]
[366339434,1750197046553,-22.67670228,0.00016438,2]
[366339484,1750197047251,-784.95775452,0.00016438,2]
[366339486,1750197047262,-490.0,0.00016438,2]
[366339488,1750197047272,-490.0,0.00016438,2]
[366339490,1750197047282,-1135.01,0.00016438,2]
[366339492,1750197047292,-490.0,0.00016438,2]
[366339494,1750197047301,-490.0,0.00016438,2]
[366339496,1750197047311,-1176.62,0.00016438,2]
[366339498,1750197047321,-868.91,0.00016438,2]
[366339500,1750197047335,-490.0,0.00016438,2]
[366339502,1750197047346,-1200.31,0.00016438,2]
[366339504,1750197047355,-490.0,0.00016438,2]
[366339506,1750197047365,-662.12,0.00016438,2]
[366339508,1750197047376,-525.17,0.00016438,2]
[366339510,1750197047386,-490.0,0.00016438,2]
[366339512,1750197047395,-490.0,0.00016438,2]
[366339514,1750197047406,-668.86,0.00016438,2]
[366339516,1750197047416,-490.0,0.00016438,2]
[366339518,1750197047428,-796.16,0.00016438,2]
[366339520,1750197047437,-490.0,0.00016438,2]
[366339522,1750197047447,-490.0,0.00016438,2]
[366339524,1750197047456,-490.0,0.00016438,2]
[366339526,1750197047465,-490.0,0.00016438,2]
[366339528,1750197047475,-490.0,0.00016438,2]
[366339530,1750197047484,-490.0,0.00016438,2]
[366339532,1750197047494,-517.62,0.00016438,2]
[366339535,1750197047504,-490.0,0.00016438,2]
[366339537,1750197047513,-490.0,0.00016438,2]
[366339539,1750197047523,-1313.82,0.00016438,2]
[366339540,1750197047532,-647.13,0.00016438,2]
[366339543,1750197047542,-2379.02,0.00016438,2]
[366339545,1750197047551,-490.0,0.00016438,2]
[366339547,1750197047561,-104.29224548,0.00016438,2]
[366339626,1750197048400,150.0,0.00013948,2]
[366339635,1750197048502,-150.0,0.00014587,2]
[366339637,1750197048512,-150.0,0.00015192,2]
[366339639,1750197048522,-150.0,0.00015475,2]
[366339641,1750197048533,-150.0,0.00015511,2]
[366339643,1750197048542,-150.0,0.00015696,2]
[366339645,1750197048552,-150.0,0.00016042,2]
[366339647,1750197048562,-210.91343092,0.00016438,2]
[366339650,1750197048572,-490.0,0.00016438,2]
[366339652,1750197048582,-223.66833855,0.00016438,2]
[366339675,1750197048797,-266.33166145,0.00016438,2]
[366339677,1750197048807,-93.06833855,0.00016438,2]
[366339775,1750197049762,-1004.0403,0.00016338,2]
[366339777,1750197049771,-298.72175183,0.00016438,2]
[366339787,1750197049852,-1229.01990962,0.00016438,2]
[366339789,1750197049862,-490.0,0.00016438,2]
[366339791,1750197049871,-1140.54,0.00016438,2]
[366339793,1750197049882,-1443.03,0.00016438,2]
[366339795,1750197049892,-490.0,0.00016438,2]
[366339797,1750197049902,-460.0,0.00016438,2]
[366339799,1750197049911,-490.0,0.00016438,2]
[366339801,1750197049921,-849.59,0.00016438,2]
[366339803,1750197049931,-490.0,0.00016438,2]
[366339805,1750197049941,-490.0,0.00016438,2]
[366339807,1750197049950,-490.0,0.00016438,2]
[366339809,1750197049959,-490.0,0.00016438,2]
[366339810,1750197049969,-490.0,0.00016438,2]
[366339812,1750197049978,-490.0,0.00016438,2]
[366339815,1750197049989,-536.34,0.00016438,2]
[366339817,1750197049998,-956.04,0.00016438,2]
[366339819,1750197050008,-490.0,0.00016438,2]
[366339821,1750197050018,-490.0,0.00016438,2]
[366339823,1750197050027,-490.0,0.00016438,2]
[366339825,1750197050037,-151.0,0.00016438,2]
[366339826,1750197050046,-490.0,0.00016438,2]
[366339828,1750197050056,-151.0,0.00016438,2]
[366339830,1750197050066,-151.0,0.00016438,2]
[366339833,1750197050076,-460.0,0.00016438,2]
[366339835,1750197050085,-490.0,0.00016438,2]
[366339837,1750197050095,-520.12,0.00016438,2]
[366339838,1750197050105,-1403.71,0.00016438,2]
[366339840,1750197050114,-751.68,0.00016438,2]
[366339843,1750197050124,-490.0,0.00016438,2]
[366339845,1750197050134,-490.0,0.00016438,2]
[366339847,1750197050144,-1495.03,0.00016438,2]
[366339849,1750197050154,-490.0,0.00016438,2]
[366339851,1750197050164,-528.73,0.00016438,2]
[366339853,1750197050174,-490.0,0.00016438,2]
[366339855,1750197050184,-490.0,0.00016438,2]
[366339857,1750197050194,-490.0,0.00016438,2]
[366339859,1750197050205,-775.34,0.00016438,2]
[366339861,1750197050214,-490.0,0.00016438,2]
[366339863,1750197050224,-490.0,0.00016438,2]
[366339865,1750197050233,-593.94,0.00016438,2]
[366339867,1750197050243,-2082.18,0.00016438,2]
[366339869,1750197050253,-531.11,0.00016438,2]
[366339871,1750197050263,-1089.65,0.00016438,2]
[366339873,1750197050273,-490.0,0.00016438,2]
[366339875,1750197050283,-490.0,0.00016438,2]
[366339886,1750197050378,-490.0,0.00016438,2]
[366339888,1750197050387,-490.0,0.00016438,2]
[366339890,1750197050397,-490.0,0.00016438,2]
[366339892,1750197050408,-490.0,0.00016438,2]
[366339895,1750197050418,-1971.49,0.00016438,2]
[366339897,1750197050427,-490.0,0.00016438,2]
[366339899,1750197050437,-490.0,0.00016438,2]
[366339901,1750197050447,-490.0,0.00016438,2]
[366339903,1750197050457,-851.04,0.00016438,2]
[366339905,1750197050466,-490.0,0.00016438,2]
[366339907,1750197050475,-490.0,0.00016438,2]
[366339909,1750197050484,-696.91,0.00016438,2]
[366339910,1750197050494,-490.0,0.00016438,2]
[366339912,1750197050503,-1061.52,0.00016438,2]
[366339914,1750197050513,-712.19,0.00016438,2]
[366339917,1750197050523,-490.0,0.00016438,2]
[366339918,1750197050532,-1293.08,0.00016438,2]
[366339920,1750197050541,-490.0,0.00016438,2]
[366339922,1750197050551,-632.86,0.00016438,2]
[366339924,1750197050559,-151.0,0.00016438,2]
[366339927,1750197050569,-151.0,0.00016438,2]
[366339928,1750197050578,-490.0,0.00016438,2]
[366339930,1750197050588,-695.39,0.00016438,2]
[366339932,1750197050597,-875.09,0.00016438,2]
[366339934,1750197050607,-151.0,0.00016438,2]
[366339936,1750197050616,-1755.99,0.00016438,2]
[366339938,1750197050626,-151.0,0.00016438,2]
[366339940,1750197050635,-151.0,0.00016438,2]
[366339942,1750197050645,-490.0,0.00016438,2]
[366339944,1750197050654,-490.0,0.00016438,2]
[366339946,1750197050664,-490.0,0.00016438,2]
[366339948,1750197050673,-1659.69,0.00016438,2]
[366339951,1750197050683,-490.0,0.00016438,2]
[366339953,1750197050693,-389.38055845,0.00016438,2]
[366339955,1750197050703,-490.0,0.00016438,2]
[366339957,1750197050712,-490.0,0.00016438,2]
[366339959,1750197050722,-1431.07,0.00016438,2]
[366339961,1750197050732,-1409.26,0.00016438,2]
[366339963,1750197050742,-490.0,0.00016438,2]
[366339965,1750197050752,-1398.82,0.00016438,2]
[366339967,1750197050762,-813.09,0.00016438,2]
[366339969,1750197050771,-490.0,0.00016438,2]
[366339971,1750197050780,-981.76,0.00016438,2]
[366339973,1750197050789,-1108.35,0.00016438,2]
[366339975,1750197050798,-490.0,0.00016438,2]
[366339977,1750197050808,-490.0,0.00016438,2]
[366339979,1750197050818,-490.0,0.00016438,2]
[366339981,1750197050827,-714.67,0.00016438,2]
[366339983,1750197050837,-490.0,0.00016438,2]
[366339985,1750197050846,-1896.11,0.00016438,2]
[366339987,1750197050856,-490.0,0.00016438,2]
[366339989,1750197050866,-490.0,0.00016438,2]
[366339991,1750197050876,-490.0,0.00016438,2]
[366339993,1750197050885,-490.0,0.00016438,2]
[366339995,1750197050895,-460.0,0.00016438,2]
[366339997,1750197050904,-490.0,0.00016438,2]
[366339999,1750197050913,-252.48087848,0.00016438,2]
[366340000,1750197050923,-490.0,0.00016438,2]
[366340001,1750197050933,-490.0,0.00016438,2]
[366340002,1750197050943,-490.0,0.00016438,2]
[366340003,1750197050952,-500.24,0.00016438,2]
[366340004,1750197050962,-694.1,0.00016438,2]
[366340005,1750197050971,-490.0,0.00016438,2]
[366340006,1750197050980,-335.65501974,0.00016438,2]
[366340007,1750197050990,-490.0,0.00016438,2]
[366340008,1750197050999,-490.0,0.00016438,2]
[366340009,1750197051009,-612.09,0.00016438,2]
[366340011,1750197051019,-490.0,0.00016438,2]
[366340013,1750197051028,-490.0,0.00016438,2]
[366340015,1750197051038,-490.0,0.00016438,2]
[366340017,1750197051047,-490.0,0.00016438,2]
[366340019,1750197051056,-477.43479939,0.00016438,2]
[366340021,1750197051065,-490.0,0.00016438,2]
[366340023,1750197051075,-490.0,0.00016438,2]
[366340025,1750197051084,-1645.06,0.00016438,2]
[366340027,1750197051094,-490.0,0.00016438,2]
[366340029,1750197051104,-490.0,0.00016438,2]
[366340031,1750197051113,-703.16,0.00016438,2]
[366340033,1750197051123,-490.0,0.00016438,2]
[366340035,1750197051132,-490.0,0.00016438,2]
[366340037,1750197051141,-1604.49,0.00016438,2]
[366340039,1750197051151,-490.0,0.00016438,2]
[366340041,1750197051160,-490.0,0.00016438,2]
[366340043,1750197051170,-499.57,0.00016438,2]
[366340045,1750197051179,-490.0,0.00016438,2]
[366340047,1750197051189,-490.0,0.00016438,2]
[366340049,1750197051198,-490.0,0.00016438,2]
[366340051,1750197051208,-513.46,0.00016438,2]
[366340052,1750197051219,-555.59,0.00016438,2]
[366340054,1750197051229,-841.47,0.00016438,2]
[366340055,1750197051238,-460.0,0.00016438,2]
[366340056,1750197051248,-818.88,0.00016438,2]
[366340057,1750197051258,-490.0,0.00016438,2]
[366340058,1750197051268,-490.0,0.00016438,2]
[366340059,1750197051277,-490.0,0.00016438,2]
[366340060,1750197051287,-848.99,0.00016438,2]
[366340061,1750197051297,-151.0,0.00016438,2]
[366340062,1750197051306,-151.0,0.00016438,2]
[366340063,1750197051315,-1834.81,0.00016438,2]
[366340064,1750197051325,-151.0,0.00016438,2]
[366340065,1750197051339,-490.0,0.00016438,2]
[366340066,1750197051348,-490.0,0.00016438,2]
[366340067,1750197051358,-490.0,0.00016438,2]
[366340068,1750197051367,-151.0,0.00016438,2]
[366340069,1750197051378,-151.0,0.00016438,2]
[366340070,1750197051388,-151.0,0.00016438,2]
[366340071,1750197051398,-490.0,0.00016438,2]
[366340072,1750197051409,-151.0,0.00016438,2]
[366340073,1750197051419,-634.97,0.00016438,2]
[366340074,1750197051428,-1462.24,0.00016438,2]
[366340075,1750197051438,-490.0,0.00016438,2]
[366340076,1750197051447,-460.0,0.00016438,2]
[366340077,1750197051457,-151.0,0.00016438,2]
[366340078,1750197051466,-490.0,0.00016438,2]
[366340079,1750197051476,-151.0,0.00016438,2]
[366340080,1750197051486,-505.73,0.00016438,2]
[366340081,1750197051495,-151.0,0.00016438,2]
[366340082,1750197051504,-490.0,0.00016438,2]
[366340083,1750197051514,-490.0,0.00016438,2]
[366340084,1750197051524,-1961.42,0.00016438,2]
[366340085,1750197051534,-490.0,0.00016438,2]
[366340086,1750197051544,-490.0,0.00016438,2]
[366340087,1750197051554,-490.0,0.00016438,2]
[366340088,1750197051563,-151.0,0.00016438,2]
[366340089,1750197051574,-490.0,0.00016438,2]
[366340090,1750197051583,-151.0,0.00016438,2]
[366340091,1750197051593,-490.0,0.00016438,2]
[366340092,1750197051603,-270.812848,0.00016438,2]
[366340093,1750197051613,-490.0,0.00016438,2]
[366340094,1750197051623,-1847.98,0.00016438,2]
[366340095,1750197051632,-151.0,0.00016438,2]
[366340096,1750197051642,-490.0,0.00016438,2]
[366340097,1750197051652,-151.0,0.00016438,2]
[366340098,1750197051662,-490.0,0.00016438,2]
[366340099,1750197051672,-151.0,0.00016438,2]
[366340100,1750197051682,-617.72,0.00016438,2]
[366340101,1750197051691,-490.0,0.00016438,2]
[366340102,1750197051701,-2059.72,0.00016438,2]
[366340103,1750197051711,-490.0,0.00016438,2]
[366340104,1750197051721,-490.0,0.00016438,2]
[366340105,1750197051731,-595.89,0.00016438,2]
[366340106,1750197051740,-1168.68,0.00016438,2]
[366340107,1750197051750,-490.0,0.00016438,2]
[366340108,1750197051760,-680.8,0.00016438,2]
[366340109,1750197051769,-490.0,0.00016438,2]
[366340110,1750197051779,-795.64,0.00016438,2]
[366340111,1750197051788,-490.0,0.00016438,2]
[366340112,1750197051799,-490.0,0.00016438,2]
[366340113,1750197051809,-490.0,0.00016438,2]
[366340114,1750197051819,-490.0,0.00016438,2]
[366340115,1750197051830,-490.0,0.00016438,2]
[366340116,1750197051840,-490.0,0.00016438,2]
[366340117,1750197051849,-490.0,0.00016438,2]
[366340118,1750197051859,-490.0,0.00016438,2]
[366340119,1750197051869,-490.0,0.00016438,2]
[366340120,1750197051879,-1210.37,0.00016438,2]
[366340121,1750197051888,-506.69,0.00016438,2]
[366340122,1750197051897,-936.79,0.00016438,2]
[366340123,1750197051907,-490.0,0.00016438,2]
[366340124,1750197051917,-533.64711256,0.00016438,2]
[366340125,1750197051930,-1193.57,0.00016438,2]
[366340126,1750197051939,-490.0,0.00016438,2]
[366340127,1750197051949,-490.0,0.00016438,2]
[366340128,1750197051959,-490.0,0.00016438,2]
[366340129,1750197051968,-460.0,0.00016438,2]
[366340130,1750197051978,-490.0,0.00016438,2]
[366340131,1750197051989,-839.23,0.00016438,2]
[366340132,1750197052000,-490.0,0.00016438,2]
[366340133,1750197052011,-490.0,0.00016438,2]
[366340134,1750197052021,-1863.9,0.00016438,2]
[366340135,1750197052030,-490.0,0.00016438,2]
[366340136,1750197052040,-390.59,0.00016438,2]
[366340137,1750197052050,-460.0,0.00016438,2]
[366340138,1750197052059,-1225.15,0.00016438,2]
[366340139,1750197052069,-490.0,0.00016438,2]
[366340140,1750197052079,-490.0,0.00016438,2]
[366340141,1750197052089,-536.89,0.00016438,2]
[366340142,1750197052099,-460.0,0.00016438,2]
[366340143,1750197052109,-2969.87,0.00016438,2]
[366340144,1750197052118,-490.0,0.00016438,2]
[366340145,1750197052129,-490.0,0.00016438,2]
[366340146,1750197052138,-490.0,0.00016438,2]
[366340147,1750197052147,-906.17,0.00016438,2]
[366340148,1750197052156,-551.82,0.00016438,2]
[366340149,1750197052167,-490.0,0.00016438,2]
[366340150,1750197052177,-9180.94844517,0.00016438,2]
[366340151,1750197052230,-12515.20155483,0.00016438,2]
[366340152,1750197052240,-490.0,0.00016438,2]
[366340153,1750197052250,-1178.7,0.00016438,2]
[366340154,1750197052260,-594.95,0.00016438,2]
[366340155,1750197052270,-465.61063178,0.00016438,2]
[366340156,1750197052279,-490.0,0.00016438,2]
[366340157,1750197052290,-490.0,0.00016438,2]
[366340158,1750197052300,-1406.5,0.00016438,2]
[366340159,1750197052310,-490.0,0.00016438,2]
[366340160,1750197052319,-460.0,0.00016438,2]
[366340161,1750197052332,-3577.54,0.00016438,2]
[366340162,1750197052342,-490.0,0.00016438,2]
[366340163,1750197052352,-490.0,0.00016438,2]
[366340164,1750197052362,-791.26,0.00016438,2]
[366340165,1750197052372,-254.11814562,0.00016438,2]
[366340166,1750197052381,-1251.32,0.00016438,2]
[366340167,1750197052391,-805.6,0.00016438,2]
[366340168,1750197052401,-490.84204661,0.00016438,2]
[366340169,1750197052411,-490.0,0.00016438,2]
[366340170,1750197052421,-45.09431873,0.00016438,2]
[366340171,1750197053001,150.0,0.00013767,2]
[366340172,1750197071517,202.0,0.00013189,2]
[366340173,1750197123671,150.0,0.0001387,2]
[366340174,1750197259372,254.67,0.00013699,2]
[366340176,1750197476712,200.0,0.00014762,7]
[366340177,1750197484582,5564.0,0.000165,5]
[366340178,1750197516153,2180.0,0.000165,5]
[366340179,1750197640017,272.2876483,0.00013891,2]
[366340180,1750197757575,1488.71656558,0.000138,2]
[366340181,1750197812294,1000.0,0.00012966,2]
[366340182,1750197966626,-202.0,0.00014533,2]
[366340183,1750197966654,-236.0,0.00014533,2]
[366340184,1750197966684,-201.0,0.00014533,2]
[366340185,1750197966712,-600.0,0.00014666,4]
[366340186,1750197966738,-1000.0,0.00014784,2]
[366340187,1750197966765,-276.05004688,0.00014918,2]
[366340188,1750197966792,-189.00524688,0.00014918,2]
[366340189,1750197966820,-150.10776837,0.00014918,2]